[Event "Titled Tuesday Blitz August 09 Early 2022"]
[White "Solon, Nathan"]
[Black "Gonzalez Vega, Alejandro"]
[WhiteFideId "2017229"]
[BlackFideId "3510042"]
[WhiteElo "2638"]
[BlackElo "2219"]
[Result "1-0"]
[Round "02"]
[TimeControl "180+1"]
[Date "2022.08.09"]
[WhiteClock "0:00:17"]
[BlackClock "0:00:04"]

1. e4 {[%clk 0:02:56]}  c5 {[%clk 0:02:59]} 2. Nf3 {[%clk 0:02:55]}  a6 {[%clk 0:02:59]} 3. d3 {[%clk 0:02:53]}  e6 {[%clk 0:02:57]} 4. g3 {[%clk 0:02:53]}  d5 {[%clk 0:02:56]} 5. Qe2 {[%clk 0:02:53]}  Be7 {[%clk 0:02:53]} 6. Bg2 {[%clk 0:02:53]}  Nc6 {[%clk 0:02:53]} 7. O-O {[%clk 0:02:53]}  Nf6 {[%clk 0:02:48]} 8. e5 {[%clk 0:02:52]}  Nd7 {[%clk 0:02:48]} 9. c4 {[%clk 0:02:52]}  dxc4 {[%clk 0:02:36]} 10. dxc4 {[%clk 0:02:53]}  Qc7 {[%clk 0:02:27]} 11. Bf4 {[%clk 0:02:52]}  h6 {[%clk 0:02:27]} 12. h4 {[%clk 0:02:52]}  Nd4 {[%clk 0:02:08]} 13. Nxd4 {[%clk 0:02:51]}  cxd4 {[%clk 0:02:09]} 14. h5 {[%clk 0:02:39]}  Rb8 {[%clk 0:01:56]} 15. Nd2 {[%clk 0:02:37]}  Nc5 {[%clk 0:01:52]} 16. Rac1 {[%clk 0:02:12]}  a5 {[%clk 0:01:48]} 17. Ne4 {[%clk 0:02:08]}  Nxe4 {[%clk 0:01:45]} 18. Qxe4 {[%clk 0:02:02]}  Bc5 {[%clk 0:01:43]} 19. Qe2 {[%clk 0:01:39]}  Bd7 {[%clk 0:01:42]} 20. Qg4 {[%clk 0:01:39]}  Kf8 {[%clk 0:01:36]} 21. Rfd1 {[%clk 0:01:27]}  Bc6 {[%clk 0:01:35]} 22. Rd3 {[%clk 0:01:16]}  Bxg2 {[%clk 0:01:34]} 23. Kxg2 {[%clk 0:01:17]}  Rd8 {[%clk 0:01:26]} 24. b3 {[%clk 0:01:16]}  Rd7 {[%clk 0:01:11]} 25. Rcd1 {[%clk 0:01:15]}  Qc6+ {[%clk 0:00:52]} 26. Kg1 {[%clk 0:01:15]}  Qe4 {[%clk 0:00:47]} 27. Qf3 {[%clk 0:01:01]}  Qxf3 {[%clk 0:00:46]} 28. Rxf3 {[%clk 0:01:01]}  Ke7 {[%clk 0:00:45]} 29. Bc1 {[%clk 0:00:59]}  Rhd8 {[%clk 0:00:44]} 30. Rfd3 {[%clk 0:00:59]}  b6 {[%clk 0:00:41]} 31. Kg2 {[%clk 0:00:59]}  a4 {[%clk 0:00:31]} 32. Kf3 {[%clk 0:00:53]}  Ra7 {[%clk 0:00:32]} 33. Bb2 {[%clk 0:00:50]}  axb3 {[%clk 0:00:32]} 34. axb3 {[%clk 0:00:50]}  Rad7 {[%clk 0:00:30]} 35. Ke4 {[%clk 0:00:51]}  f5+ {[%clk 0:00:28]} 36. exf6+ {[%clk 0:00:47]}  gxf6 {[%clk 0:00:28]} 37. g4 {[%clk 0:00:41]}  e5 {[%clk 0:00:22]} 38. f4 {[%clk 0:00:41]}  Ke6 {[%clk 0:00:20]} 39. f5+ {[%clk 0:00:37]}  Ke7 {[%clk 0:00:19]} 40. Ra1 {[%clk 0:00:34]}  Rg8 {[%clk 0:00:18]} 41. Rg1 {[%clk 0:00:25]}  Kf7 {[%clk 0:00:14]} 42. Bc1 {[%clk 0:00:25]}  Bf8 {[%clk 0:00:13]} 43. Rg2 {[%clk 0:00:24]}  Ra7 {[%clk 0:00:12]} 44. Kd5 {[%clk 0:00:20]}  Ra1 {[%clk 0:00:11]} 45. Bd2 {[%clk 0:00:20]}  Rb1 {[%clk 0:00:10]} 46. Kc6 {[%clk 0:00:20]}  Rf1 {[%clk 0:00:06]} 47. Kxb6 {[%clk 0:00:18]}  e4 {[%clk 0:00:04]} 48. Rxd4 {[%clk 0:00:18]}  e3 {[%clk 0:00:04]} 49. Bxe3 {[%clk 0:00:18]}  Re1 {[%clk 0:00:03]} 50. Rd7+ {[%clk 0:00:18]}  Be7 {[%clk 0:00:03]} 51. Bc5 {[%clk 0:00:18]}  Rb8+ {[%clk 0:00:03]} 52. Kc7 {[%clk 0:00:18]}  Rxb3 {[%clk 0:00:03]} 53. Rxe7+ {[%clk 0:00:17]}  Rxe7+ {[%clk 0:00:03]} 54. Bxe7 {[%clk 0:00:18]}  Kxe7 {[%clk 0:00:03]} 55. c5 {[%clk 0:00:19]}  Rc3 {[%clk 0:00:03]} 56. c6 {[%clk 0:00:19]}  Rc4 {[%clk 0:00:03]} 57. Re2+ {[%clk 0:00:18]}  Kf7 {[%clk 0:00:03]} 58. Kd7 {[%clk 0:00:18]}  Rd4+ {[%clk 0:00:03]} 59. Kc8 {[%clk 0:00:17]}  Rxg4 {[%clk 0:00:03]} 60. c7 {[%clk 0:00:17]}  Rg8+ {[%clk 0:00:04]} 61. Kb7 {[%clk 0:00:17]} 1-0


[Site "https://www.chess.com"]

[Event "Titled Tuesday Blitz August 09 Early 2022"]
[White "Tatarinov, Dmitry"]
[Black "Zhigalko, Sergei"]
[WhiteFideId "24160067"]
[BlackFideId "13502956"]
[WhiteElo "2324"]
[BlackElo "2662"]
[Result "1/2-1/2"]
[Round "02"]
[TimeControl "180+1"]
[Date "2022.08.09"]
[WhiteClock "0:01:13"]
[BlackClock "0:00:07"]

1. c4 {[%clk 0:03:00]}  e5 {[%clk 0:02:57]} 2. g3 {[%clk 0:02:58]}  Nf6 {[%clk 0:02:57]} 3. Bg2 {[%clk 0:02:58]}  c6 {[%clk 0:02:50]} 4. Nf3 {[%clk 0:02:57]}  d6 {[%clk 0:02:50]} 5. Nc3 {[%clk 0:02:56]}  h6 {[%clk 0:02:47]} 6. O-O {[%clk 0:02:57]}  Be7 {[%clk 0:02:47]} 7. e4 {[%clk 0:02:56]}  Bg4 {[%clk 0:02:42]} 8. d4 {[%clk 0:02:55]}  Nbd7 {[%clk 0:02:41]} 9. Be3 {[%clk 0:02:52]}  O-O {[%clk 0:02:40]} 10. h3 {[%clk 0:02:52]}  Bxf3 {[%clk 0:02:24]} 11. Bxf3 {[%clk 0:02:52]}  a5 {[%clk 0:02:25]} 12. Bg2 {[%clk 0:02:51]}  Re8 {[%clk 0:02:23]} 13. Qc2 {[%clk 0:02:48]}  Bf8 {[%clk 0:02:18]} 14. Rad1 {[%clk 0:02:46]}  Qc7 {[%clk 0:02:19]} 15. Rfe1 {[%clk 0:02:32]}  g6 {[%clk 0:02:06]} 16. f4 {[%clk 0:02:29]}  Bg7 {[%clk 0:01:55]} 17. c5 {[%clk 0:02:14]}  exd4 {[%clk 0:01:35]} 18. cxd6 {[%clk 0:02:10]}  Qxd6 {[%clk 0:01:34]} 19. e5 {[%clk 0:02:01]}  Nxe5 {[%clk 0:01:32]} 20. fxe5 {[%clk 0:02:01]}  Qxe5 {[%clk 0:01:33]} 21. Bxd4 {[%clk 0:01:57]}  Qxg3 {[%clk 0:01:33]} 22. Qf2 {[%clk 0:01:53]}  Qg5 {[%clk 0:01:25]} 23. Rf1 {[%clk 0:01:44]}  Re6 {[%clk 0:01:23]} 24. Ne4 {[%clk 0:01:43]}  Rxe4 {[%clk 0:01:15]} 25. Bxf6 {[%clk 0:01:43]}  Bxf6 {[%clk 0:01:06]} 26. Qxf6 {[%clk 0:01:43]}  Qxf6 {[%clk 0:00:52]} 27. Rxf6 {[%clk 0:01:44]}  Re7 {[%clk 0:00:51]} 28. Rfd6 {[%clk 0:01:41]}  Rae8 {[%clk 0:00:47]} 29. Rd7 {[%clk 0:01:38]}  h5 {[%clk 0:00:47]} 30. Bf3 {[%clk 0:01:35]}  Kg7 {[%clk 0:00:47]} 31. h4 {[%clk 0:01:35]}  Kf6 {[%clk 0:00:46]} 32. Kf2 {[%clk 0:01:36]}  Rxd7 {[%clk 0:00:37]} 33. Rxd7 {[%clk 0:01:35]}  Re7 {[%clk 0:00:38]} 34. Rxe7 {[%clk 0:01:22]}  Kxe7 {[%clk 0:00:39]} 35. a4 {[%clk 0:01:21]}  Kd6 {[%clk 0:00:32]} 36. b3 {[%clk 0:01:21]}  Kc5 {[%clk 0:00:27]} 37. Be2 {[%clk 0:01:20]}  b5 {[%clk 0:00:18]} 38. Ke3 {[%clk 0:01:20]}  Kb4 {[%clk 0:00:11]} 39. Bd1 {[%clk 0:01:14]}  bxa4 {[%clk 0:00:10]} 40. bxa4 {[%clk 0:01:14]}  c5 {[%clk 0:00:10]} 41. Kf4 {[%clk 0:01:14]}  f6 {[%clk 0:00:11]} 42. Bc2 {[%clk 0:01:15]}  g5+ {[%clk 0:00:10]} 43. hxg5 {[%clk 0:01:14]}  fxg5+ {[%clk 0:00:10]} 44. Kxg5 {[%clk 0:01:15]}  Kc3 {[%clk 0:00:09]} 45. Bd1 {[%clk 0:01:15]}  c4 {[%clk 0:00:01]} 46. Bxh5 {[%clk 0:01:14]}  Kb2 {[%clk 0:00:01]} 47. Kf4 {[%clk 0:01:10]}  c3 {[%clk 0:00:02]} 48. Bg6 {[%clk 0:01:10]}  c2 {[%clk 0:00:02]} 49. Bxc2 {[%clk 0:01:10]}  Kxc2 {[%clk 0:00:03]} 50. Ke3 {[%clk 0:01:11]}  Kb3 {[%clk 0:00:04]} 51. Kd3 {[%clk 0:01:11]}  Kxa4 {[%clk 0:00:04]} 52. Kc3 {[%clk 0:01:11]}  Ka3 {[%clk 0:00:04]} 53. Kc2 {[%clk 0:01:12]}  Ka2 {[%clk 0:00:05]} 54. Kc1 {[%clk 0:01:12]}  a4 {[%clk 0:00:06]} 55. Kc2 {[%clk 0:01:12]}  a3 {[%clk 0:00:06]} 56. Kc1 {[%clk 0:01:13]}  Ka1 {[%clk 0:00:06]} 57. Kc2 {[%clk 0:01:13]}  a2 {[%clk 0:00:07]} 58. Kc1 {[%clk 0:01:13]} 1/2-1/2


[Site "https://www.chess.com"]

[Event "Titled Tuesday Blitz August 09 Early 2022"]
[White "Ternault, Mathieu"]
[Black "Petrova, Irina"]
[WhiteFideId "20641532"]
[BlackFideId "14124122"]
[WhiteElo "2249"]
[BlackElo "2021"]
[Result "1-0"]
[Round "02"]
[TimeControl "180+1"]
[Date "2022.08.09"]
[WhiteClock "0:00:14"]
[BlackClock "0:00:03"]

1. e4 {[%clk 0:03:00]}  d6 {[%clk 0:03:00]} 2. Nc3 {[%clk 0:02:59]}  Nf6 {[%clk 0:03:00]} 3. Nf3 {[%clk 0:02:59]}  e5 {[%clk 0:03:01]} 4. Bc4 {[%clk 0:02:58]}  Be7 {[%clk 0:03:00]} 5. a3 {[%clk 0:02:53]}  O-O {[%clk 0:03:00]} 6. d3 {[%clk 0:02:53]}  c6 {[%clk 0:03:00]} 7. Ba2 {[%clk 0:02:50]}  Nbd7 {[%clk 0:02:53]} 8. Rg1 {[%clk 0:02:48]}  d5 {[%clk 0:02:37]} 9. exd5 {[%clk 0:02:43]}  cxd5 {[%clk 0:02:38]} 10. Bxd5 {[%clk 0:02:30]}  Nxd5 {[%clk 0:02:37]} 11. Nxd5 {[%clk 0:02:31]}  Bc5 {[%clk 0:02:05]} 12. Be3 {[%clk 0:02:29]}  Re8 {[%clk 0:01:59]} 13. Qd2 {[%clk 0:02:26]}  b5 {[%clk 0:01:46]} 14. Ng5 {[%clk 0:01:55]}  Bb7 {[%clk 0:01:36]} 15. Nc3 {[%clk 0:01:55]}  b4 {[%clk 0:01:21]} 16. Nce4 {[%clk 0:01:47]}  Bxe3 {[%clk 0:01:03]} 17. Qxe3 {[%clk 0:01:48]}  bxa3 {[%clk 0:01:02]} 18. Rxa3 {[%clk 0:01:48]}  h6 {[%clk 0:00:33]} 19. Nxf7 {[%clk 0:01:33]}  Kxf7 {[%clk 0:00:18]} 20. Nd6+ {[%clk 0:01:33]}  Kg8 {[%clk 0:00:19]} 21. Nxb7 {[%clk 0:01:34]}  Qc7 {[%clk 0:00:18]} 22. Na5 {[%clk 0:01:21]}  Kh8 {[%clk 0:00:18]} 23. Nc4 {[%clk 0:01:20]}  Nc5 {[%clk 0:00:16]} 24. f3 {[%clk 0:01:17]}  Ne6 {[%clk 0:00:14]} 25. Kd1 {[%clk 0:01:11]}  Nd4 {[%clk 0:00:14]} 26. Re1 {[%clk 0:01:10]}  Rac8 {[%clk 0:00:13]} 27. Kc1 {[%clk 0:01:09]}  a5 {[%clk 0:00:11]} 28. Kb1 {[%clk 0:01:09]}  Rb8 {[%clk 0:00:11]} 29. Qd2 {[%clk 0:01:00]}  Qb7 {[%clk 0:00:10]} 30. Qxa5 {[%clk 0:00:53]}  Ra8 {[%clk 0:00:10]} 31. Qb6 {[%clk 0:00:53]}  Qd5 {[%clk 0:00:08]} 32. Rxa8 {[%clk 0:00:52]}  Rxa8 {[%clk 0:00:09]} 33. Rxe5 {[%clk 0:00:51]}  Qd7 {[%clk 0:00:09]} 34. b3 {[%clk 0:00:39]}  Nc6 {[%clk 0:00:06]} 35. Rc5 {[%clk 0:00:25]}  Nd4 {[%clk 0:00:06]} 36. Qd6 {[%clk 0:00:20]}  Qe8 {[%clk 0:00:06]} 37. Ne5 {[%clk 0:00:18]}  Nb5 {[%clk 0:00:04]} 38. Qc6 {[%clk 0:00:14]}  Na3+ {[%clk 0:00:02]} 39. Kb2 {[%clk 0:00:13]}  Qf8 {[%clk 0:00:02]} 40. Ng6+ {[%clk 0:00:13]}  Kg8 {[%clk 0:00:02]} 41. Nxf8 {[%clk 0:00:14]}  Kxf8 {[%clk 0:00:03]} 42. Qxa8+ {[%clk 0:00:14]} 1-0


[Site "https://www.chess.com"]

[Event "Titled Tuesday Blitz August 09 Early 2022"]
[White "Thiel, Thomas"]
[Black "Dev, Shah"]
[WhiteFideId "4615964"]
[BlackFideId "35019058"]
[WhiteElo "2241"]
[BlackElo "2048"]
[Result "0-1"]
[Round "02"]
[TimeControl "180+1"]
[Date "2022.08.09"]
[WhiteClock "0:00:28"]
[BlackClock "0:00:54"]

1. e4 {[%clk 0:03:00]}  e5 {[%clk 0:02:53]} 2. Nf3 {[%clk 0:02:59]}  Nc6 {[%clk 0:02:53]} 3. d4 {[%clk 0:02:59]}  exd4 {[%clk 0:02:53]} 4. Nxd4 {[%clk 0:02:59]}  Nf6 {[%clk 0:02:52]} 5. Nxc6 {[%clk 0:02:59]}  bxc6 {[%clk 0:02:53]} 6. e5 {[%clk 0:02:59]}  Qe7 {[%clk 0:02:53]} 7. Qe2 {[%clk 0:02:59]}  Nd5 {[%clk 0:02:51]} 8. h4 {[%clk 0:02:58]}  a5 {[%clk 0:02:45]} 9. g3 {[%clk 0:02:56]}  Ba6 {[%clk 0:02:38]} 10. c4 {[%clk 0:02:56]}  f6 {[%clk 0:02:04]} 11. exf6 {[%clk 0:02:53]}  Nxf6 {[%clk 0:02:02]} 12. Nc3 {[%clk 0:02:49]}  Qxe2+ {[%clk 0:02:00]} 13. Bxe2 {[%clk 0:02:50]}  Bb4 {[%clk 0:01:58]} 14. Bd2 {[%clk 0:02:48]}  O-O {[%clk 0:01:55]} 15. O-O-O {[%clk 0:02:42]}  Rae8 {[%clk 0:01:55]} 16. Rhe1 {[%clk 0:02:40]}  d5 {[%clk 0:01:45]} 17. a3 {[%clk 0:02:35]}  Bc5 {[%clk 0:01:42]} 18. cxd5 {[%clk 0:02:21]}  Bxe2 {[%clk 0:01:43]} 19. Rxe2 {[%clk 0:02:20]}  cxd5 {[%clk 0:01:38]} 20. Rxe8 {[%clk 0:01:54]}  Rxe8 {[%clk 0:01:39]} 21. Bg5 {[%clk 0:01:50]}  c6 {[%clk 0:01:31]} 22. Bxf6 {[%clk 0:01:49]}  gxf6 {[%clk 0:01:31]} 23. Rd2 {[%clk 0:01:49]}  Kf7 {[%clk 0:01:29]} 24. Nd1 {[%clk 0:01:47]}  Bf8 {[%clk 0:01:23]} 25. Kc2 {[%clk 0:01:46]}  Bh6 {[%clk 0:01:23]} 26. f4 {[%clk 0:01:44]}  Re1 {[%clk 0:01:22]} 27. Nf2 {[%clk 0:01:29]}  Rg1 {[%clk 0:01:17]} 28. Rd3 {[%clk 0:01:27]}  Rg2 {[%clk 0:01:18]} 29. Rf3 {[%clk 0:01:26]}  Bf8 {[%clk 0:01:07]} 30. Kb3 {[%clk 0:01:25]}  Bc5 {[%clk 0:01:06]} 31. Nd3 {[%clk 0:01:23]}  Bg1 {[%clk 0:01:07]} 32. Ka4 {[%clk 0:01:09]}  Ke6 {[%clk 0:01:01]} 33. Kxa5 {[%clk 0:01:07]}  Kf5 {[%clk 0:01:00]} 34. b4 {[%clk 0:01:05]}  Ke4 {[%clk 0:00:57]} 35. Ne1 {[%clk 0:01:01]}  Bf2 {[%clk 0:00:52]} 36. Nxg2 {[%clk 0:00:36]}  Kxf3 {[%clk 0:00:52]} 37. Ka6 {[%clk 0:00:32]}  Kxg2 {[%clk 0:00:52]} 38. Kb7 {[%clk 0:00:32]}  c5 {[%clk 0:00:53]} 39. bxc5 {[%clk 0:00:31]}  Bxc5 {[%clk 0:00:54]} 40. a4 {[%clk 0:00:30]}  d4 {[%clk 0:00:54]} 41. Kc6 {[%clk 0:00:28]}  Ba7 {[%clk 0:00:54]} 0-1


[Site "https://www.chess.com"]

[Event "Titled Tuesday Blitz August 09 Early 2022"]
[White "Thorhallsson, Simon"]
[Black "Grot, Blazej"]
[WhiteFideId "2310090"]
[BlackFideId "21835845"]
[WhiteElo "2137"]
[BlackElo "1614"]
[Result "0-1"]
[Round "02"]
[TimeControl "180+1"]
[Date "2022.08.09"]
[WhiteClock "0:00:32"]
[BlackClock "0:01:15"]

1. e4 {[%clk 0:01:59]}  c5 {[%clk 0:02:37]} 2. Nf3 {[%clk 0:01:59]}  e6 {[%clk 0:02:37]} 3. d4 {[%clk 0:01:59]}  cxd4 {[%clk 0:02:38]} 4. Nxd4 {[%clk 0:02:00]}  Nc6 {[%clk 0:02:37]} 5. Nc3 {[%clk 0:01:59]}  Qc7 {[%clk 0:02:35]} 6. g3 {[%clk 0:01:59]}  Nf6 {[%clk 0:02:31]} 7. Bg2 {[%clk 0:01:59]}  Nxd4 {[%clk 0:02:30]} 8. Qxd4 {[%clk 0:01:59]}  Bc5 {[%clk 0:02:28]} 9. Qd1 {[%clk 0:01:46]}  a6 {[%clk 0:02:22]} 10. O-O {[%clk 0:01:44]}  O-O {[%clk 0:02:19]} 11. Bg5 {[%clk 0:01:39]}  Be7 {[%clk 0:02:17]} 12. h3 {[%clk 0:01:30]}  d6 {[%clk 0:02:16]} 13. Kh2 {[%clk 0:01:29]}  h6 {[%clk 0:02:15]} 14. Be3 {[%clk 0:01:26]}  Rb8 {[%clk 0:02:14]} 15. a4 {[%clk 0:01:26]}  Bd7 {[%clk 0:02:13]} 16. a5 {[%clk 0:01:25]}  Bc6 {[%clk 0:02:13]} 17. Qd2 {[%clk 0:01:23]}  Nd7 {[%clk 0:02:12]} 18. f4 {[%clk 0:01:08]}  f5 {[%clk 0:01:56]} 19. exf5 {[%clk 0:01:06]}  Bxg2 {[%clk 0:01:54]} 20. Qxg2 {[%clk 0:01:04]}  Rxf5 {[%clk 0:01:53]} 21. Qe4 {[%clk 0:01:04]}  Rf6 {[%clk 0:01:47]} 22. Bd4 {[%clk 0:01:04]}  d5 {[%clk 0:01:45]} 23. Nxd5 {[%clk 0:00:58]}  exd5 {[%clk 0:01:43]} 24. Qxe7 {[%clk 0:00:58]}  Rf7 {[%clk 0:01:35]} 25. Qe6 {[%clk 0:00:55]}  Qxc2+ {[%clk 0:01:34]} 26. Rf2 {[%clk 0:00:53]}  Qe4 {[%clk 0:01:32]} 27. Be5 {[%clk 0:00:48]}  Rf8 {[%clk 0:01:24]} 28. Raf1 {[%clk 0:00:40]}  Kh7 {[%clk 0:01:20]} 29. Kg1 {[%clk 0:00:37]}  Nxe5 {[%clk 0:01:16]} 30. fxe5 {[%clk 0:00:31]}  Rxf2 {[%clk 0:01:15]} 31. Rxf2 {[%clk 0:00:31]}  Qe1+ {[%clk 0:01:15]} 32. Kg2 {[%clk 0:00:32]}  Rxf2# {[%clk 0:01:15]} 0-1


[Site "https://www.chess.com"]

[Event "Titled Tuesday Blitz August 09 Early 2022"]
[White "Todorovic, Bojan"]
[Black "Williams, Simon K"]
[WhiteFideId "917087"]
[BlackFideId "404454"]
[WhiteElo "2266"]
[BlackElo "2468"]
[Result "0-1"]
[Round "02"]
[TimeControl "180+1"]
[Date "2022.08.09"]
[WhiteClock "0:00:03"]
[BlackClock "0:00:22"]

1. d4 {[%clk 0:02:58]}  e6 {[%clk 0:02:59]} 2. c4 {[%clk 0:02:58]}  b6 {[%clk 0:02:57]} 3. Nf3 {[%clk 0:02:55]}  Bb7 {[%clk 0:02:56]} 4. g3 {[%clk 0:02:54]}  Bb4+ {[%clk 0:02:50]} 5. Bd2 {[%clk 0:02:51]}  Bxd2+ {[%clk 0:02:49]} 6. Nbxd2 {[%clk 0:02:51]}  Nf6 {[%clk 0:02:45]} 7. Bg2 {[%clk 0:02:50]}  O-O {[%clk 0:02:44]} 8. O-O {[%clk 0:02:50]}  d6 {[%clk 0:02:44]} 9. Qc2 {[%clk 0:02:49]}  Nbd7 {[%clk 0:02:44]} 10. e4 {[%clk 0:02:47]}  e5 {[%clk 0:02:44]} 11. d5 {[%clk 0:02:41]}  c6 {[%clk 0:02:42]} 12. Rfc1 {[%clk 0:02:33]}  a5 {[%clk 0:02:38]} 13. Ne1 {[%clk 0:02:32]}  cxd5 {[%clk 0:02:32]} 14. cxd5 {[%clk 0:02:30]}  Nc5 {[%clk 0:02:30]} 15. b3 {[%clk 0:02:23]}  b5 {[%clk 0:02:27]} 16. a3 {[%clk 0:02:07]}  Rc8 {[%clk 0:02:08]} 17. Qb1 {[%clk 0:02:04]}  Qb6 {[%clk 0:02:07]} 18. Nd3 {[%clk 0:01:49]}  Ng4 {[%clk 0:01:57]} 19. Rf1 {[%clk 0:01:17]}  Ba6 {[%clk 0:01:43]} 20. Nxc5 {[%clk 0:01:09]}  Qxc5 {[%clk 0:01:37]} 21. b4 {[%clk 0:01:09]}  Qc3 {[%clk 0:01:33]} 22. Nb3 {[%clk 0:01:03]}  a4 {[%clk 0:01:24]} 23. Na5 {[%clk 0:01:03]}  Qd4 {[%clk 0:00:47]} 24. Qd1 {[%clk 0:00:51]}  Qxd1 {[%clk 0:00:34]} 25. Rfxd1 {[%clk 0:00:39]}  Rc3 {[%clk 0:00:34]} 26. Bh3 {[%clk 0:00:33]}  h5 {[%clk 0:00:31]} 27. Bxg4 {[%clk 0:00:29]}  hxg4 {[%clk 0:00:31]} 28. Rdc1 {[%clk 0:00:27]}  Rfc8 {[%clk 0:00:27]} 29. Nc6 {[%clk 0:00:27]}  Rxc1+ {[%clk 0:00:26]} 30. Rxc1 {[%clk 0:00:27]}  Kf8 {[%clk 0:00:26]} 31. Kg2 {[%clk 0:00:22]}  Bb7 {[%clk 0:00:26]} 32. h3 {[%clk 0:00:12]}  gxh3+ {[%clk 0:00:25]} 33. Kxh3 {[%clk 0:00:12]}  Ke8 {[%clk 0:00:25]} 34. Kg4 {[%clk 0:00:12]}  Kd7 {[%clk 0:00:24]} 35. f4 {[%clk 0:00:04]}  exf4 {[%clk 0:00:23]} 36. gxf4 {[%clk 0:00:04]}  Bxc6 {[%clk 0:00:24]} 37. dxc6+ {[%clk 0:00:04]}  Rxc6 {[%clk 0:00:24]} 38. Rd1 {[%clk 0:00:03]}  Ke6 {[%clk 0:00:22]} 0-1


[Site "https://www.chess.com"]

[Event "Titled Tuesday Blitz August 09 Early 2022"]
[White "Toncheva, Nadya"]
[Black "Goltsev, Dmitry"]
[WhiteFideId "2924056"]
[BlackFideId "24176710"]
[WhiteElo "1888"]
[BlackElo "2258"]
[Result "0-1"]
[Round "02"]
[TimeControl "180+1"]
[Date "2022.08.09"]
[WhiteClock "0:00:04"]
[BlackClock "0:00:16"]

1. d4 {[%clk 0:03:00]}  Nf6 {[%clk 0:02:14]} 2. c4 {[%clk 0:03:00]}  e6 {[%clk 0:02:14]} 3. Nc3 {[%clk 0:03:01]}  Bb4 {[%clk 0:02:14]} 4. e3 {[%clk 0:03:01]}  Qe7 {[%clk 0:02:14]} 5. Bd3 {[%clk 0:02:58]}  b6 {[%clk 0:02:13]} 6. Ne2 {[%clk 0:02:58]}  Bb7 {[%clk 0:02:14]} 7. O-O {[%clk 0:02:58]}  O-O {[%clk 0:02:13]} 8. e4 {[%clk 0:02:57]}  e5 {[%clk 0:02:13]} 9. d5 {[%clk 0:02:56]}  Bxc3 {[%clk 0:02:11]} 10. Nxc3 {[%clk 0:02:56]}  d6 {[%clk 0:02:12]} 11. Bg5 {[%clk 0:02:50]}  h6 {[%clk 0:02:11]} 12. Be3 {[%clk 0:02:48]}  a5 {[%clk 0:02:11]} 13. a3 {[%clk 0:02:46]}  Nbd7 {[%clk 0:02:11]} 14. b4 {[%clk 0:02:43]}  Rfc8 {[%clk 0:02:08]} 15. Qe2 {[%clk 0:02:40]}  g5 {[%clk 0:02:04]} 16. Rfc1 {[%clk 0:02:36]}  Nf8 {[%clk 0:02:04]} 17. Nb5 {[%clk 0:02:22]}  Ng6 {[%clk 0:02:01]} 18. g3 {[%clk 0:02:15]}  Ne8 {[%clk 0:01:53]} 19. c5 {[%clk 0:02:09]}  axb4 {[%clk 0:01:47]} 20. axb4 {[%clk 0:01:58]}  bxc5 {[%clk 0:01:46]} 21. bxc5 {[%clk 0:01:57]}  Rxa1 {[%clk 0:01:46]} 22. Rxa1 {[%clk 0:01:56]}  c6 {[%clk 0:01:45]} 23. dxc6 {[%clk 0:01:34]}  Bxc6 {[%clk 0:01:42]} 24. Ra7 {[%clk 0:01:32]}  Qf6 {[%clk 0:01:32]} 25. Nxd6 {[%clk 0:01:13]}  Nxd6 {[%clk 0:01:33]} 26. cxd6 {[%clk 0:01:14]}  Qxd6 {[%clk 0:01:33]} 27. Bc4 {[%clk 0:00:56]}  Rc7 {[%clk 0:01:23]} 28. Qf3 {[%clk 0:00:42]}  Rxa7 {[%clk 0:01:18]} 29. Bxa7 {[%clk 0:00:43]}  Qd7 {[%clk 0:01:15]} 30. Be3 {[%clk 0:00:33]}  Kg7 {[%clk 0:01:12]} 31. Qh5 {[%clk 0:00:19]}  Bxe4 {[%clk 0:01:10]} 32. Qe2 {[%clk 0:00:10]}  Qb7 {[%clk 0:01:07]} 33. Bd2 {[%clk 0:00:09]}  Qb1+ {[%clk 0:01:04]} 34. Be1 {[%clk 0:00:10]}  f6 {[%clk 0:00:46]} 35. f3 {[%clk 0:00:10]}  Bxf3 {[%clk 0:00:46]} 36. Qe3 {[%clk 0:00:07]}  Ne7 {[%clk 0:00:40]} 37. Bd3 {[%clk 0:00:07]}  Qd1 {[%clk 0:00:37]} 38. Kf2 {[%clk 0:00:06]}  g4 {[%clk 0:00:18]} 39. Bb4 {[%clk 0:00:05]}  Nc6 {[%clk 0:00:10]} 40. Bd2 {[%clk 0:00:04]}  Nd4 {[%clk 0:00:10]} 41. Qxh6+ {[%clk 0:00:04]}  Kf7 {[%clk 0:00:10]} 42. Qh7+ {[%clk 0:00:04]}  Ke6 {[%clk 0:00:10]} 43. Qg8+ {[%clk 0:00:05]}  Kd6 {[%clk 0:00:10]} 44. Qd8+ {[%clk 0:00:05]}  Kc5 {[%clk 0:00:10]} 45. Qc7+ {[%clk 0:00:05]}  Bc6 {[%clk 0:00:11]} 46. Qe7+ {[%clk 0:00:05]}  Kb6 {[%clk 0:00:10]} 47. Qd8+ {[%clk 0:00:05]}  Kb7 {[%clk 0:00:10]} 48. Qe7+ {[%clk 0:00:05]}  Kb6 {[%clk 0:00:10]} 49. Qd8+ {[%clk 0:00:05]}  Ka7 {[%clk 0:00:08]} 50. Qc7+ {[%clk 0:00:05]}  Bb7 {[%clk 0:00:09]} 51. Qc5+ {[%clk 0:00:05]}  Kb8 {[%clk 0:00:09]} 52. Qd6+ {[%clk 0:00:05]}  Kc8 {[%clk 0:00:10]} 53. Qf8+ {[%clk 0:00:05]}  Kc7 {[%clk 0:00:10]} 54. Qe7+ {[%clk 0:00:05]}  Kb6 {[%clk 0:00:11]} 55. Qb4+ {[%clk 0:00:05]}  Kc7 {[%clk 0:00:09]} 56. Qc5+ {[%clk 0:00:06]}  Nc6 {[%clk 0:00:09]} 57. Ba5+ {[%clk 0:00:05]}  Kb8 {[%clk 0:00:09]} 58. Qd6+ {[%clk 0:00:06]}  Ka7 {[%clk 0:00:09]} 59. Qc5+ {[%clk 0:00:06]}  Ka8 {[%clk 0:00:10]} 60. Qf8+ {[%clk 0:00:06]}  Nb8 {[%clk 0:00:09]} 61. Qd6 {[%clk 0:00:06]}  Qf3+ {[%clk 0:00:10]} 62. Ke1 {[%clk 0:00:05]}  Qh1+ {[%clk 0:00:11]} 63. Kd2 {[%clk 0:00:06]}  Qxh2+ {[%clk 0:00:11]} 64. Kc3 {[%clk 0:00:06]}  Qa2 {[%clk 0:00:11]} 65. Bb6 {[%clk 0:00:07]}  Qa1+ {[%clk 0:00:10]} 66. Kd2 {[%clk 0:00:07]}  e4 {[%clk 0:00:10]} 67. Be2 {[%clk 0:00:06]}  Qb2+ {[%clk 0:00:10]} 68. Ke3 {[%clk 0:00:07]}  Qc3+ {[%clk 0:00:10]} 69. Kf2 {[%clk 0:00:07]}  Qc6 {[%clk 0:00:11]} 70. Qa3+ {[%clk 0:00:06]}  Ba6 {[%clk 0:00:11]} 71. Bxa6 {[%clk 0:00:07]}  Qxb6+ {[%clk 0:00:12]} 72. Kg2 {[%clk 0:00:07]}  Qxa6 {[%clk 0:00:12]} 73. Qc5 {[%clk 0:00:06]}  Qe2+ {[%clk 0:00:12]} 74. Kg1 {[%clk 0:00:07]}  Qd1+ {[%clk 0:00:13]} 75. Kf2 {[%clk 0:00:07]}  Qd3 {[%clk 0:00:13]} 76. Kg2 {[%clk 0:00:07]}  Kb7 {[%clk 0:00:13]} 77. Qe7+ {[%clk 0:00:07]}  Nd7 {[%clk 0:00:13]} 78. Qb4+ {[%clk 0:00:08]}  Kc6 {[%clk 0:00:14]} 79. Qa4+ {[%clk 0:00:08]}  Kd6 {[%clk 0:00:14]} 80. Qb4+ {[%clk 0:00:08]}  Ke6 {[%clk 0:00:15]} 81. Qa5 {[%clk 0:00:07]}  e3 {[%clk 0:00:14]} 82. Qd8 {[%clk 0:00:06]}  e2 {[%clk 0:00:14]} 83. Qe8+ {[%clk 0:00:07]}  Kd6 {[%clk 0:00:14]} 84. Kf2 {[%clk 0:00:04]}  Qf3+ {[%clk 0:00:14]} 85. Ke1 {[%clk 0:00:04]}  Qxg3+ {[%clk 0:00:15]} 86. Kd2 {[%clk 0:00:05]}  Qe5 {[%clk 0:00:16]} 87. Qa8 {[%clk 0:00:04]}  e1=Q+ {[%clk 0:00:16]} 0-1


[Site "https://www.chess.com"]